bitfinex-derivatives/quotes_BTCF0:USTF0_20250828
["timestamp","ask_amount","ask_price","bid_price","bid_amount"]
[1756388679614,0.01619,112970.0,112960.0,0.3608]
[1756388679803,0.01619,112970.0,112960.0,1.2076]
[1756388680006,0.04092978,112970.0,112960.0,1.2076]
[1756388680909,0.02473978,112970.0,112960.0,1.2961216]
[1756388681310,0.02473978,112970.0,112960.0,2.10182354]
[1756388681498,0.59394441,112990.0,112970.0,0.0885138]
[1756388681696,0.59394441,112990.0,112970.0,0.4493138]
[1756388681697,0.0729813,112990.0,112970.0,0.4493138]
[1756388682403,0.0964213,112990.0,112970.0,0.4493138]
[1756388682604,0.62468664,112990.0,112970.0,0.3608]
[1756388682806,0.03963,112980.0,112970.0,0.3608]
[1756388683004,0.06437223,112980.0,112970.0,0.3608]
[1756388683905,0.87007757,112980.0,112970.0,0.3608]
[1756388684108,0.03963,112970.0,112960.0,0.3608]
[1756388684299,0.04093223,112970.0,112960.0,0.3608]
[1756388684501,0.06437223,112970.0,112960.0,0.3608]
[1756388685209,0.04093223,112970.0,112960.0,0.3608]
[1756388685612,0.06437223,112970.0,112960.0,0.3608]
[1756388685807,0.62007757,112970.0,112950.0,1.2325284]
[1756388686040,0.62007757,112970.0,112960.0,0.3608]
[1756388686401,0.62007757,112970.0,112950.0,1.144]
[1756388686402,0.02344,112960.0,112950.0,1.144]
[1756388687612,0.002,112970.0,112950.0,1.00503444]
[1756388687804,0.002,112970.0,112960.0,0.3608]
[1756388688004,0.02665432,112970.0,112960.0,0.3608]
[1756388688711,0.89013444,112970.0,112960.0,0.3608]
[1756388688913,0.03963,112960.0,112950.0,0.3608]
[1756388689141,0.02465432,112960.0,112950.0,0.4493295]
[1756388689413,0.02014478,112970.0,112950.0,0.4493295]
[1756388689713,0.02014478,112970.0,112960.0,0.3608]
[1756388690012,0.05898809,112970.0,112960.0,0.3608]
[1756388690208,0.63813343,112970.0,112950.0,1.20728]
[1756388690608,0.02344,112960.0,112950.0,1.20728]
[1756388690807,0.59729012,112970.0,112950.0,1.20728]
[1756388691015,0.62294388,112970.0,112950.0,1.20728]
[1756388691608,0.04379854,112970.0,112960.0,0.3608]
[1756388691803,0.04279854,112970.0,112960.0,0.4493216]
[1756388692008,0.01814478,112970.0,112960.0,1.25502694]
[1756388692213,0.01804907,112990.0,112970.0,0.0885076]
[1756388692410,0.01804907,112990.0,112980.0,0.449306]
[1756388693615,0.01804907,112990.0,112980.0,0.5200017]
[1756388694023,0.01804907,112990.0,112980.0,0.4314957]
[1756388694317,0.01804907,112990.0,112980.0,0.3608]
[1756388694514,0.03423907,112990.0,112980.0,0.3608]
[1756388694820,0.63804461,112990.0,112970.0,1.20728]
[1756388695112,0.08233927,112990.0,112980.0,0.3608]
[1756388695348,0.05889927,112990.0,112980.0,0.3608]
[1756388696013,0.08233927,112990.0,112980.0,0.3608]
[1756388696410,0.63804461,112990.0,112980.0,0.3608]
[1756388696612,0.61460461,112990.0,112980.0,0.3608]
[1756388697114,0.63804461,112990.0,112980.0,0.3608]
[1756388697512,0.64004461,112990.0,112980.0,0.3608]
[1756388697719,0.02344,112980.0,112970.0,1.2072]
[1756388697907,0.59533534,112980.0,112970.0,0.3608]
[1756388698112,0.61999265,112980.0,112970.0,0.3608]
[1756388699819,0.01619,112980.0,112970.0,0.3608]
[1756388700021,0.03621907,112990.0,112970.0,0.6993128]
[1756388700225,0.06087492,112990.0,112980.0,0.3608]
[1756388700720,0.08263492,112990.0,112980.0,0.3608]
[1756388700911,0.05987492,112990.0,112980.0,0.3608]
[1756388701114,0.04370492,112990.0,112980.0,0.3608]
[1756388701319,0.04370492,112990.0,112980.0,1.295666]
[1756388701546,0.04370492,112990.0,112980.0,2.10137134]
[1756388701547,0.01904907,112990.0,112980.0,2.10137134]
[1756388701712,0.001,112990.0,112980.0,2.10137134]
[1756388702218,0.001,112990.0,112980.0,1.25501134]
[1756388702418,0.001,112990.0,112980.0,1.85133134]
[1756388702622,0.001,112990.0,112980.0,1.20712]
[1756388702921,0.001,112990.0,112980.0,1.85133124]
[1756388703424,0.001,112990.0,112980.0,0.6118]
[1756388703620,0.001,112990.0,112980.0,1.296626]
[1756388704016,0.02276,113010.0,112980.0,1.85233134]
[1756388704222,0.59463534,113010.0,112990.0,0.3608]
[1756388704413,0.59463534,113000.0,112990.0,1.20708]
[1756388704654,0.6192942,113000.0,112990.0,1.20708]
[1756388704922,0.6192942,113000.0,112990.0,0.3608]
[1756388704923,0.8692942,113000.0,112990.0,0.3608]
[1756388705718,0.01617,112990.0,112970.0,0.38065318]
[1756388705922,0.59463534,112980.0,112970.0,1.22689318]
[1756388706123,0.59463534,112980.0,112960.0,0.3608]
[1756388706124,0.61928548,112980.0,112960.0,0.3608]
[1756388706320,0.57187534,112970.0,112950.0,0.38026463]
[1756388706522,0.02276,112960.0,112950.0,1.22650463]
[1756388706728,1.27222162,112990.0,112950.0,1.22650463]
[1756388707024,0.01617,112960.0,112950.0,0.38026463]
[1756388707223,0.03893,112960.0,112950.0,0.38026463]
[1756388707420,0.03893,112960.0,112950.0,1.22650463]
[1756388707621,0.01617,112960.0,112950.0,1.22650463]
[1756388707827,0.57846534,112970.0,112950.0,1.22650463]
[1756388708029,0.60311235,112970.0,112950.0,1.22650463]
[1756388708320,0.01617,112960.0,112950.0,1.22650463]
[1756388708530,0.55570534,112970.0,112950.0,1.22650463]
[1756388708727,0.03893,112960.0,112950.0,1.22650463]
[1756388709121,0.04093,112960.0,112950.0,1.22650463]
[1756388709326,0.59663534,112960.0,112950.0,0.38026463]
[1756388709517,0.62327981,112960.0,112950.0,0.38026463]
[1756388710224,0.62327981,112960.0,112950.0,0.01946463]
[1756388710625,0.62127981,112960.0,112950.0,0.38026463]
[1756388710926,0.62227981,112960.0,112950.0,0.01946463]
[1756388711130,0.62227981,112960.0,112950.0,0.38026463]
[1756388711318,0.04381447,112960.0,112950.0,0.38026463]
[1756388711518,0.04381447,112960.0,112950.0,0.46879403]
[1756388711519,0.02764447,112960.0,112950.0,0.46879403]
[1756388711724,0.001,112960.0,112950.0,0.46879403]
[1756388712026,0.04093,112960.0,112950.0,0.38026463]
[1756388712830,0.59663534,112960.0,112950.0,0.38026463]
[1756388713019,0.59863534,112960.0,112950.0,0.38026463]
[1756388713224,0.02017,112960.0,112950.0,0.38026463]
[1756388713731,0.04293,112960.0,112950.0,0.38026463]
[1756388713937,0.04093,112960.0,112950.0,0.38026463]
[1756388714132,0.6222906,112960.0,112950.0,0.01946463]
[1756388714330,0.6222906,112960.0,112940.0,0.3608]
[1756388714331,0.03893,112940.0,112930.0,0.01952329]
[1756388714636,0.61928304,112940.0,112930.0,0.01952329]
[1756388714931,0.61890197,112940.0,112930.0,0.01952329]
[1756388716733,0.06319663,112940.0,112930.0,0.01952329]
[1756388717239,0.06319663,112940.0,112930.0,0.53968747]
[1756388717240,0.02426663,112940.0,112930.0,0.53968747]
[1756388717432,0.03893,112950.0,112930.0,0.46886839]
[1756388717634,0.61921865,112950.0,112940.0,0.3608]
[1756388717943,0.06351331,112950.0,112940.0,0.3608]
[1756388718238,0.61921865,112950.0,112940.0,0.3608]
[1756388718637,0.06351331,112950.0,112940.0,0.3608]
[1756388718936,0.04075331,112950.0,112940.0,0.3608]
[1756388719136,0.06351331,112950.0,112940.0,0.3608]
[1756388719340,0.03893,112940.0,112930.0,0.38032329]
[1756388719536,0.59463534,112940.0,112930.0,0.38032329]
[1756388720336,0.91750534,112950.0,112930.0,0.38032329]
[1756388720539,0.03893,112940.0,112930.0,0.38032329]
[1756388721232,0.01817,112950.0,112930.0,0.71886839]
[1756388721434,0.002,112950.0,112940.0,0.3608]
[1756388721740,0.04093,112950.0,112940.0,0.3608]
[1756388721936,0.06451587,112950.0,112940.0,0.3608]
[1756388722137,0.02458587,112950.0,112940.0,0.3608]
[1756388722336,1.51307534,112960.0,112940.0,0.4493372]
[1756388722538,0.61922294,112960.0,112940.0,0.3608]
[1756388722938,0.61922294,112960.0,112940.0,0.4493364]
[1756388723253,0.61922294,112960.0,112940.0,0.3608]
[1756388723254,0.03993,112950.0,112940.0,0.3608]
[1756388723433,0.59563534,112950.0,112930.0,0.38032329]
[1756388723638,0.59463534,112940.0,112930.0,0.38032329]
[1756388724229,0.57187534,112940.0,112920.0,0.3608]
[1756388724432,0.02276,112920.0,112900.0,0.13103104]
[1756388724635,0.03893,112910.0,112900.0,0.38023871]
[1756388725638,0.59363534,112910.0,112900.0,0.38283871]
[1756388726244,0.03793,112910.0,112900.0,0.38283871]
[1756388726535,0.59363534,112910.0,112900.0,0.38283871]
[1756388726740,0.39973,112920.0,112910.0,0.0026]
[1756388726941,0.02276,112910.0,112900.0,0.38783871]
[1756388727143,0.03893,112910.0,112900.0,0.38783871]
[1756388727335,0.59463534,112910.0,112900.0,0.38283871]
[1756388727530,2.07721268,112910.0,112900.0,0.002]
[1756388728943,2.08611919,112910.0,112900.0,0.005]
[1756388729137,2.07721268,112910.0,112900.0,0.005]
[1756388729642,2.07721268,112910.0,112870.0,0.3608]
[1756388729836,2.07721268,112910.0,112870.0,0.3764]
[1756388729837,0.59463534,112880.0,112870.0,0.3764]
[1756388730030,0.59463534,112880.0,112870.0,0.3608]
[1756388730443,0.59363534,112880.0,112870.0,0.3608]
[1756388730640,0.59363534,112880.0,112870.0,0.372]
[1756388730945,0.01601,112880.0,112870.0,0.379]
[1756388731143,0.01501,112880.0,112870.0,0.379]
[1756388731336,2.64418534,112890.0,112880.0,0.008]
[1756388731337,2.1271,112890.0,112880.0,0.008]
[1756388731643,2.70771247,112890.0,112880.0,0.0208]
[1756388732039,2.68510247,112890.0,112870.0,0.3698]
[1756388732248,2.68510247,112890.0,112870.0,0.001]
[1756388732249,0.95512534,112880.0,112870.0,0.001]
[1756388732445,0.99913667,112880.0,112870.0,0.001]
[1756388732737,0.03862,112860.0,112850.0,0.8121926]
[1756388733148,0.01601,112860.0,112850.0,0.4011526]
[1756388734441,0.03762,112860.0,112850.0,0.3762]
[1756388734645,0.59332534,112860.0,112850.0,0.3618]
[1756388734841,0.84332534,112860.0,112850.0,0.001]
[1756388735051,0.84332534,112860.0,112840.0,0.3698]
[1756388735052,0.653422,112860.0,112830.0,0.3608]
[1756388735386,0.653422,112860.0,112830.0,0.38677]
[1756388735387,0.59432534,112840.0,112830.0,0.38677]
[1756388735544,0.59432534,112840.0,112830.0,0.37677]
[1756388735744,0.59432534,112840.0,112830.0,0.3608]
[1756388736338,0.02261,112830.0,112820.0,0.3708]
[1756388736538,0.59432534,112830.0,112820.0,0.3608]
[1756388736947,0.03862,112830.0,112820.0,0.37677]
[1756388737247,0.03862,112830.0,112820.0,0.38677]
[1756388737451,0.03762,112830.0,112820.0,0.38677]
[1756388738047,0.03762,112830.0,112820.0,0.38877]
[1756388738248,0.86168,112840.0,112830.0,0.02697]
[1756388738449,0.02261,112850.0,112840.0,0.0886157]
[1756388738641,0.03373183,112860.0,112850.0,0.01597]
[1756388738847,0.01772183,112860.0,112850.0,0.4763779]
[1756388739141,0.0181042,112880.0,112870.0,0.02697]
[1756388739448,0.0181042,112880.0,112870.0,0.38777]
[1756388739841,0.0567242,112880.0,112870.0,0.38777]
[1756388740046,0.0181042,112880.0,112870.0,0.38777]
[1756388740248,0.88,112890.0,112870.0,0.7263622]
[1756388740453,0.02461727,112890.0,112880.0,0.38777]
[1756388740755,0.04062727,112890.0,112880.0,0.38777]
[1756388740946,0.02461727,112890.0,112880.0,0.4763543]
[1756388741141,0.88,112900.0,112890.0,0.1155465]
[1756388741341,1.47110223,112920.0,112910.0,0.02697]
[1756388741553,2.2973272,112920.0,112900.0,0.3608]
[1756388741848,2.2973272,112920.0,112890.0,0.3608]
[1756388741849,0.02261,112900.0,112890.0,0.3608]
[1756388742050,0.59432534,112900.0,112890.0,0.3608]
[1756388742554,0.95512534,112900.0,112880.0,0.3718]
[1756388742858,0.59432534,112890.0,112880.0,0.38777]
[1756388743050,0.01601,112890.0,112880.0,0.4763543]
[1756388743441,0.91650534,112900.0,112880.0,0.02697]
[1756388743673,0.03862,112880.0,112870.0,0.001]
[1756388743851,1.82578769,112880.0,112870.0,0.001]
[1756388744051,1.83578769,112880.0,112840.0,0.47250613]
[1756388744248,0.57831534,112850.0,112840.0,0.3608]
[1756388744657,0.02261,112850.0,112840.0,0.3608]
[1756388745054,0.86316,112860.0,112850.0,0.1006078]
[1756388745257,0.02481455,112860.0,112850.0,0.4614078]
[1756388745553,0.01789613,112870.0,112860.0,0.012]
[1756388745970,0.04271352,112870.0,112860.0,0.012]
[1756388746150,0.06532352,112870.0,112850.0,0.3728]
[1756388746451,0.06532352,112870.0,112840.0,1.22404]
[1756388746452,0.52028637,112860.0,112840.0,0.3728]
[1756388746655,0.002,112850.0,112840.0,0.3738]
[1756388746853,0.52228637,112850.0,112840.0,0.001]
[1756388748370,0.52228637,112850.0,112840.0,1.12147637]
[1756388748371,0.002,112850.0,112840.0,1.12147637]
[1756388748656,0.38269613,112870.0,112840.0,0.6228]
[1756388748955,0.38341,112860.0,112850.0,0.001]
[1756388749150,0.90567901,112860.0,112850.0,0.001]
[1756388749357,1.15567901,112860.0,112850.0,0.001]
[1756388750252,1.13306901,112860.0,112820.0,0.39226048]
[1756388750564,1.72451637,112850.0,112820.0,0.39226048]
[1756388750756,1.74910901,112850.0,112820.0,0.48089148]
[1756388750956,1.74910901,112850.0,112820.0,0.39226048]
[1756388751151,0.38739264,112850.0,112820.0,0.46889128]
[1756388751359,0.38739264,112850.0,112830.0,0.014]
[1756388751557,0.02659264,112850.0,112830.0,0.014]
[1756388751856,0.01601,112840.0,112820.0,0.48289128]
[1756388752259,0.01601,112840.0,112830.0,0.02997]
[1756388752460,0.03959798,112840.0,112820.0,0.3768]
[1756388752651,0.02458798,112840.0,112830.0,0.015]
[1756388752857,0.06320798,112840.0,112820.0,0.3768]
[1756388753158,0.03862,112830.0,112820.0,0.3618]
[1756388753363,0.03862,112830.0,112820.0,0.002]
[1756388753551,1.17168126,112830.0,112820.0,0.002]
[1756388753947,0.65799489,112830.0,112810.0,0.02558941]
[1756388754162,1.74700637,112820.0,112810.0,0.02558941]
[1756388754454,1.77159126,112820.0,112810.0,0.02558941]
[1756388754663,2.02159126,112820.0,112810.0,0.02558941]
[1756388754867,1.27391489,112820.0,112810.0,0.02558941]
[1756388755659,1.27291489,112820.0,112810.0,0.02558941]
[1756388756067,1.77059126,112820.0,112810.0,0.02558941]
[1756388756251,2.34159126,112820.0,112780.0,0.3608]
[1756388756453,0.02261,112780.0,112770.0,0.11170613]
[1756388756655,0.87,112780.0,112770.0,0.02354]
[1756388756854,0.89457211,112780.0,112770.0,0.4730106]
[1756388757059,0.01785785,112800.0,112780.0,0.02354]
[1756388757261,0.04243497,112800.0,112790.0,0.38434]
[1756388757659,0.01785785,112800.0,112790.0,0.63434]
[1756388757859,0.53814422,112800.0,112790.0,0.3608]
[1756388758057,0.0652769,112800.0,112790.0,0.3608]
[1756388758261,0.02261,112790.0,112760.0,0.3608]
[1756388758462,0.02261,112790.0,112770.0,0.02354]
[1756388758463,0.3608,112790.0,112770.0,0.02354]
[1756388758762,0.04741849,112790.0,112780.0,0.02354]
[1756388758957,0.04741849,112790.0,112770.0,0.3608]
[1756388759165,0.02480849,112790.0,112780.0,0.02354]
[1756388759857,0.02680849,112790.0,112780.0,0.02354]
[1756388760059,0.006,112790.0,112780.0,0.63434]
[1756388760358,0.006,112790.0,112780.0,0.27354]
[1756388760554,0.004,112790.0,112780.0,0.38434]
[1756388760756,0.007,112790.0,112780.0,0.38534]
[1756388761171,0.007,112790.0,112780.0,0.001]
[1756388761172,0.39143,112790.0,112780.0,0.001]
[1756388761353,0.91425853,112790.0,112780.0,0.001]
[1756388761557,1.16425853,112790.0,112780.0,0.001]
[1756388761864,0.68206216,112790.0,112780.0,0.001]
[1756388762054,0.07126216,112790.0,112780.0,0.001]
[1756388762266,0.07126216,112790.0,112780.0,0.40066]
[1756388762465,0.07126216,112790.0,112780.0,0.0173]
[1756388762960,0.56993853,112790.0,112780.0,0.001]
[1756388763464,0.07226216,112790.0,112780.0,0.001]
[1756388763662,0.56993853,112790.0,112780.0,0.001]
[1756388763859,0.03315216,112790.0,112780.0,0.65066]
[1756388764463,0.008,112790.0,112780.0,1.23699847]
[1756388764765,0.008,112790.0,112780.0,0.7393221]
[1756388764966,0.01785785,112800.0,112790.0,0.1112142]
[1756388765161,0.38443,112840.0,112820.0,0.0163]
[1756388765367,0.38443,112840.0,112830.0,0.02256]
[1756388765368,0.78959555,112840.0,112830.0,0.02256]
[1756388765560,0.78959555,112840.0,112810.0,0.38336]
[1756388765561,0.02363,112830.0,112810.0,0.38336]
[1756388765859,0.02363,112830.0,112800.0,0.3608]
[1756388765860,0.58061053,112820.0,112800.0,0.38336]
[1756388766062,0.02363,112810.0,112800.0,0.3608]
[1756388766261,0.38443,112820.0,112810.0,0.02256]
[1756388766461,0.005,112800.0,112790.0,0.3618]
[1756388766663,0.05378654,112800.0,112790.0,0.38436]
[1756388766964,0.61676707,112800.0,112790.0,0.38436]
[1756388767162,0.03115654,112800.0,112790.0,0.7220142]
[1756388767367,0.01821075,112820.0,112800.0,0.0896442]
[1756388767559,0.02221075,112820.0,112810.0,0.8327985]
[1756388767759,0.004,112820.0,112810.0,1.58086878]
[1756388768075,0.01784835,112850.0,112840.0,0.02256]
[1756388768377,0.01784835,112850.0,112830.0,0.0886196]
[1756388768378,0.01784835,112850.0,112830.0,0.3608]
[1756388768668,0.04147835,112850.0,112840.0,0.3608]
[1756388768861,0.0666471,112850.0,112830.0,0.3608]
[1756388769065,0.02363,112840.0,112820.0,0.38336]
[1756388769367,0.02363,112820.0,112810.0,0.01950607]
[1756388769565,0.04879049,112820.0,112810.0,0.01950607]
[1756388769765,0.40959049,112820.0,112810.0,0.01950607]
[1756388769964,0.02716049,112820.0,112810.0,0.40286607]
[1756388770266,0.01784835,112850.0,112830.0,0.088619]
[1756388770466,0.01784835,112850.0,112840.0,0.3828]
[1756388771055,0.01784835,112850.0,112830.0,0.4494226]
[1756388771056,0.53954863,112850.0,112830.0,0.3608]
[1756388771262,0.02363,112840.0,112830.0,0.3828]
[1756388771775,0.04147835,112850.0,112830.0,0.6994228]
[1756388772065,0.04147835,112850.0,112840.0,0.60868528]
[1756388772066,0.01784835,112850.0,112840.0,0.60868528]
[1756388772266,0.01789613,112870.0,112860.0,0.1105993]
[1756388772467,0.04298007,112870.0,112860.0,1.33026958]
[1756388772669,0.01789265,112890.0,112880.0,0.0926936]
[1756388772968,0.01789265,112890.0,112880.0,1.31236388]
[1756388772969,0.37,112890.0,112880.0,1.31236388]
[1756388773165,0.37,112890.0,112880.0,1.86825388]
[1756388773166,0.02,112890.0,112880.0,1.86825388]
[1756388773361,0.01779247,112920.0,112890.0,0.0885755]
[1756388773560,0.01779247,112920.0,112910.0,0.7216]
[1756388773773,0.04142247,112920.0,112910.0,0.7516]
[1756388773972,0.88,112930.0,112910.0,1.58822658]
[1756388774166,0.02363,112950.0,112920.0,0.3608]
[1756388774369,0.02363,112940.0,112930.0,0.3608]
[1756388774559,0.02498555,112940.0,112930.0,0.3608]
[1756388774760,0.88,112950.0,112930.0,0.3608]
[1756388774964,0.90498927,112950.0,112930.0,0.3608]
[1756388775174,0.02363,112940.0,112930.0,0.3608]
[1756388775365,0.02363,112930.0,112920.0,0.3608]
[1756388775771,0.74807028,112930.0,112910.0,0.3608]
[1756388775974,0.02363,112920.0,112900.0,0.3608]
[1756388776168,0.04756669,112920.0,112900.0,0.3608]
[1756388776373,0.02363,112910.0,112900.0,0.3608]
[1756388776770,0.04756669,112910.0,112900.0,0.3608]
[1756388776974,0.02393669,112910.0,112900.0,0.3608]
[1756388777170,0.04756669,112910.0,112900.0,0.3608]
[1756388777364,0.88419767,112910.0,112890.0,0.3608]
[1756388777567,0.1121985,112900.0,112890.0,0.3608]
[1756388777811,0.13608777,112900.0,112890.0,0.3608]
[1756388777968,0.0885764,112890.0,112880.0,0.3608]
[1756388778171,0.0885764,112890.0,112880.0,0.3708]
[1756388778471,0.0875764,112890.0,112880.0,0.4593842]
[1756388778672,0.0875764,112890.0,112880.0,0.3708]
[1756388778871,0.1112064,112890.0,112880.0,0.3708]
[1756388779177,0.1350933,112890.0,112880.0,0.3708]
[1756388779366,0.1114633,112890.0,112880.0,0.3708]
[1756388779880,0.0238869,112890.0,112880.0,0.4593842]
[1756388780073,0.002,112900.0,112890.0,0.0885764]
[1756388780282,0.002,112900.0,112890.0,0.94744668]
[1756388780973,0.0885763,112890.0,112880.0,0.3608]
[1756388781174,0.1122063,112890.0,112880.0,0.3708]
[1756388781477,0.0905763,112890.0,112880.0,0.3708]
[1756388781873,0.38809221,112890.0,112880.0,0.3708]
[1756388782179,0.0885842,112880.0,112870.0,1.28385942]
[1756388782365,0.0885842,112880.0,112870.0,1.29385942]
[1756388782571,0.3622142,112880.0,112870.0,0.3708]
[1756388782874,0.02388319,112880.0,112870.0,0.4593921]
[1756388783068,0.02388319,112880.0,112870.0,1.56826238]
[1756388783371,0.01800344,112890.0,112880.0,0.0885842]
[1756388783673,0.01800344,112890.0,112880.0,1.3517442]
[1756388783971,0.10657984,112890.0,112880.0,1.26316]
[1756388784169,0.40409521,112890.0,112880.0,0.3608]
[1756388784366,0.1122142,112880.0,112870.0,0.3608]
[1756388784576,0.13609957,112880.0,112870.0,0.3708]
[1756388784976,0.38609957,112880.0,112870.0,0.3708]
[1756388785171,0.88416985,112880.0,112870.0,0.3708]
[1756388785377,0.47327357,112880.0,112860.0,0.3608]
[1756388785585,0.47327357,112880.0,112870.0,0.449392]
[1756388785586,0.02388537,112880.0,112870.0,0.449392]
[1756388785778,0.11446957,112880.0,112870.0,0.3608]
[1756388785975,0.0905842,112880.0,112870.0,0.3608]
[1756388786167,0.1142142,112880.0,112870.0,0.3608]
[1756388786380,0.088592,112870.0,112860.0,1.26332]
[1756388786580,0.088592,112870.0,112860.0,0.3608]
[1756388786770,0.1172142,112880.0,112860.0,0.4493966]
[1756388786771,0.0935903,112880.0,112860.0,0.4493966]
[1756388787074,0.0935842,112880.0,112870.0,0.3608]
[1756388787275,0.1172142,112880.0,112870.0,0.3608]
[1756388787478,0.088592,112870.0,112860.0,0.3608]
[1756388788385,0.10658674,112890.0,112880.0,0.0885841]
[1756388788674,0.04188735,112890.0,112880.0,0.4493841]
[1756388788868,0.01800344,112890.0,112880.0,1.55825438]
[1756388789067,0.01800344,112890.0,112880.0,1.88516]
[1756388789271,0.10657974,112890.0,112880.0,0.7316]
[1756388789675,0.10657974,112890.0,112880.0,0.3708]
[1756388789981,0.0885842,112880.0,112870.0,0.3608]
[1756388790281,0.088592,112870.0,112860.0,0.01991637]
[1756388790580,0.99512395,112870.0,112860.0,0.01991637]
[1756388790782,1.24512395,112870.0,112860.0,0.01991637]
[1756388791084,0.1123956,112840.0,112830.0,0.38058251]
[1756388791282,0.0886156,112840.0,112830.0,0.39058251]
[1756388791478,0.88433728,112840.0,112830.0,0.02978251]
[1756388791778,0.88433728,112840.0,112830.0,0.01978251]
[1756388791779,0.112487,112840.0,112830.0,0.01978251]
[1756388791980,0.386267,112840.0,112830.0,0.38058251]
[1756388792577,0.88633728,112840.0,112830.0,0.01978251]
[1756388792878,0.388267,112840.0,112830.0,0.01978251]
[1756388793087,0.114487,112840.0,112830.0,0.01978251]
[1756388793583,0.138267,112840.0,112830.0,0.01978251]
[1756388793883,0.141267,112840.0,112830.0,0.01978251]
[1756388794086,0.752067,112840.0,112830.0,0.01978251]
[1756388794474,2.15413728,112840.0,112830.0,0.01978251]
[1756388794979,0.02378,112830.0,112810.0,0.38030607]
[1756388795278,0.02378,112820.0,112810.0,0.38030607]
[1756388795479,0.02378,112820.0,112810.0,0.01950607]
[1756388795676,0.79571762,112820.0,112810.0,0.01950607]
[1756388795875,0.29764734,112820.0,112810.0,0.01950607]
[1756388796078,0.79571762,112820.0,112810.0,0.01950607]
[1756388796679,0.29864734,112820.0,112810.0,0.01950607]
[1756388796977,0.79671762,112820.0,112810.0,0.01950607]
[1756388797183,0.79571762,112820.0,112810.0,0.01950607]
[1756388797523,0.02378,112810.0,112800.0,0.3608]
[1756388797685,0.02378,112810.0,112800.0,0.4308]
[1756388797996,1.10887028,112810.0,112780.0,0.3608]
[1756388798285,0.02378,112790.0,112780.0,0.6408]
[1756388798584,0.02378,112800.0,112780.0,0.38058]
[1756388798778,0.38464409,112810.0,112790.0,0.4494548]
[1756388798990,0.02384409,112810.0,112800.0,0.38058]
[1756388799183,0.02384409,112810.0,112800.0,0.469227]
[1756388799382,0.02384409,112810.0,112800.0,0.38058]
[1756388799589,0.07129298,112810.0,112790.0,0.38058]
[1756388799776,0.02378,112800.0,112790.0,0.3608]
[1756388799987,0.02384409,112800.0,112790.0,0.38058]
[1756388800189,0.04951298,112810.0,112800.0,0.108427]
[1756388800486,0.003,112810.0,112800.0,0.469227]
[1756388800678,0.003,112810.0,112800.0,0.108427]
[1756388800881,0.002,112810.0,112800.0,0.719227]
[1756388801281,0.002,112810.0,112800.0,1.21729728]
[1756388801483,0.01824234,112840.0,112830.0,0.1064034]
[1756388801680,0.01824234,112840.0,112830.0,0.7172034]
[1756388801885,0.01824234,112840.0,112830.0,1.21527368]
[1756388802276,0.01824234,112840.0,112830.0,2.11963368]
[1756388802483,0.40831298,112880.0,112870.0,0.106372]
[1756388802484,0.04751298,112880.0,112870.0,0.106372]
[1756388802783,0.46593611,112890.0,112870.0,0.37858]
[1756388802784,0.04178344,112890.0,112870.0,0.37858]
[1756388802985,0.04178344,112890.0,112870.0,0.3608]
[1756388802986,0.4026664,112890.0,112870.0,0.3608]
[1756388803188,0.02378,112880.0,112870.0,0.3608]
[1756388803486,0.02378,112870.0,112860.0,0.3608]
[1756388803886,0.87687372,112890.0,112860.0,0.4493991]
[1756388803887,0.37880344,112890.0,112860.0,0.4493991]
[1756388804089,0.92451635,112890.0,112870.0,0.01778]
[1756388804389,0.38458,112880.0,112860.0,0.37858]
[1756388804588,0.02378,112870.0,112860.0,0.3608]
[1756388804787,0.02378,112870.0,112850.0,0.37858]
[1756388804980,0.02378,112860.0,112850.0,0.3608]
[1756388805291,0.88354542,112870.0,112830.0,0.39914054]
[1756388805487,0.3608,112860.0,112840.0,0.3608]
[1756388805688,0.02378,112850.0,112830.0,0.02056054]
[1756388805886,0.02378,112840.0,112830.0,0.38136054]
[1756388806092,0.02378,112840.0,112830.0,0.38036054]
[1756388806489,0.04845674,112840.0,112830.0,0.38036054]
[1756388807293,0.02467674,112840.0,112830.0,0.39814054]
[1756388807596,0.02578,112840.0,112830.0,0.39814054]
[1756388807896,0.02667674,112840.0,112830.0,0.39814054]
[1756388808105,0.02667674,112840.0,112830.0,0.48676394]
[1756388808309,0.02667674,112840.0,112830.0,0.39814054]
[1756388808691,0.002,112840.0,112830.0,0.39814054]
[1756388809097,0.002,112840.0,112830.0,0.48676394]
[1756388809298,0.003,112860.0,112850.0,0.0886077]
[1756388809499,0.02467964,112870.0,112850.0,0.4651877]
[1756388809698,1.33631262,112880.0,112850.0,0.37658]
[1756388810006,0.49807028,112870.0,112850.0,0.3608]
[1756388810307,0.40925964,112870.0,112850.0,0.37658]
[1756388810600,0.04845964,112870.0,112850.0,0.4651867]
[1756388810806,0.04845964,112870.0,112860.0,0.01578]
[1756388810807,0.02467964,112870.0,112860.0,0.01578]
[1756388811107,1.28935964,112880.0,112860.0,0.1043796]
[1756388811413,1.29135964,112880.0,112860.0,0.4651796]
[1756388811601,1.29135964,112880.0,112870.0,0.01578]
[1756388811801,0.02378,112870.0,112860.0,0.3608]
[1756388812205,0.04845964,112870.0,112860.0,0.3608]
[1756388812902,0.40925964,112870.0,112850.0,0.3608]
[1756388813101,0.54652992,112870.0,112850.0,0.37658]
[1756388813301,0.05045964,112870.0,112850.0,0.4651875]
[1756388814103,0.05045964,112870.0,112860.0,0.01578]
[1756388814300,0.02667964,112870.0,112860.0,0.01578]
[1756388814713,0.02567964,112870.0,112860.0,0.01578]
[1756388815010,0.02567964,112870.0,112860.0,0.3608]
[1756388815307,0.04945964,112870.0,112850.0,0.37758]
[1756388815507,0.04945964,112870.0,112850.0,0.4661867]
[1756388815707,0.04945964,112870.0,112850.0,0.37758]
[1756388815902,0.52185028,112860.0,112850.0,0.3618]
[1756388816217,0.90732992,112860.0,112850.0,0.001]
[1756388816402,0.40925964,112860.0,112850.0,0.001]
[1756388816605,2.05896992,112860.0,112850.0,0.001]
[1756388817103,2.0767162,112860.0,112830.0,0.38036054]
[1756388817309,2.0767162,112860.0,112830.0,0.39036054]
[1756388817310,0.02378,112840.0,112830.0,0.39036054]
[1756388817502,0.04846973,112840.0,112830.0,0.39036054]
[1756388817707,0.02468973,112840.0,112830.0,0.40614054]